bitfinex/quotes_ETHUSD_20250328
["timestamp","ask_amount","ask_price","bid_price","bid_amount"]
[1743184200488,5.31293,1882.2,1882.0,5.19]
[1743184200643,5.31293,1882.2,1881.9,5.19]
[1743184200973,5.31321,1882.1,1882.0,14.5]
[1743184201668,0.7574,1882.4,1882.0,14.5]
[1743184201870,5.31273,1882.3,1882.0,19.81342]
[1743184202041,5.31273,1882.3,1882.0,14.5]
[1743184202243,10.62562,1882.3,1882.1,1.45]
[1743184202443,5.31273,1882.3,1882.1,1.45]
[1743184202654,5.31307,1882.2,1881.9,13.11543267]
[1743184202856,5.31321,1882.1,1882.0,14.5]
[1743184205788,6.10821,1882.1,1882.0,14.5]
[1743184206876,5.31406,1881.8,1881.7,5.19]
[1743184207393,5.31406,1881.8,1881.7,19.69]
[1743184207584,5.31406,1881.8,1881.7,14.5]
[1743184207759,5.31389,1881.9,1881.7,14.5]
[1743184208157,5.31406,1881.8,1881.7,14.5]
[1743184208789,5.31406,1881.8,1881.3,8.31542]
[1743184208790,5.31494,1881.5,1881.2,0.8253]
[1743184209084,5.31443,1881.7,1881.3,10.50438]
[1743184209286,5.31443,1881.7,1881.4,14.5]
[1743184209461,10.62901,1881.7,1881.4,14.5]
[1743184209789,5.31464,1881.6,1881.4,14.5]
[1743184210787,10.62892,1881.7,1881.4,14.5]
[1743184211087,5.31443,1881.7,1881.4,19.81516]
[1743184211297,10.62895,1881.7,1881.4,14.5]
[1743184211586,5.31443,1881.7,1881.4,14.5]
[1743184211789,5.31465,1881.6,1881.4,14.5]
[1743184212187,5.3149,1881.5,1881.4,14.5]
[1743184213010,5.3149,1881.5,1881.4,19.69]
[1743184214406,6.1359,1881.5,1881.4,14.5]
[1743184214566,5.31547,1881.3,1881.2,5.19]
[1743184214983,5.31547,1881.3,1881.2,19.69]
[1743184217094,5.31547,1881.3,1881.2,14.5]
[1743184217265,5.31534,1881.4,1881.2,14.5]
[1743184220606,10.63069,1881.4,1881.2,14.5]
[1743184220797,5.31534,1881.4,1881.2,14.5]
[1743184221896,5.31547,1881.3,1881.2,14.5]
[1743184226104,11.37478,1881.6,1881.3,5.31547]
[1743184226276,11.37478,1881.6,1881.3,6.10927]
[1743184226471,11.37464,1881.6,1881.3,6.10927]
[1743184226873,11.37464,1881.6,1881.4,14.5]
[1743184227074,16.68946,1881.6,1881.4,14.5]
[1743184227277,6.06,1881.6,1881.5,5.3149]
[1743184227477,5.31323,1882.1,1881.7,5.31433]
[1743184227699,12.12594,1882.2,1881.6,5.86462]
[1743184227898,6.06,1882.2,1881.9,10.62717]
[1743184228102,6.06,1882.2,1881.9,10.50353]
[1743184228703,6.06,1882.2,1882.0,6.36799495]
[1743184228895,6.06,1882.2,1882.0,15.55450495]
[1743184229279,6.06,1882.2,1882.0,20.86787495]
[1743184229479,5.3124,1882.4,1882.0,26.18126495]
[1743184229702,5.31213,1882.5,1882.1,5.31312]
[1743184229901,5.31169,1882.7,1882.3,5.31253]
[1743184230086,5.31169,1882.7,1882.3,10.50253]
[1743184230404,5.3118,1882.6,1882.4,14.5]
[1743184231910,5.3118,1882.6,1882.5,0.23796939]
[1743184233577,5.31236,1882.4,1882.3,5.19]
[1743184233810,5.31266,1882.3,1882.1,0.8034]
[1743184233990,5.31293,1882.2,1882.1,5.189]
[1743184234313,5.31293,1882.2,1882.1,0.22773627]
[1743184235235,5.31349,1882.0,1881.9,5.189]
[1743184235530,5.31349,1882.0,1881.8,1.03958522]
[1743184235710,5.31349,1882.0,1881.8,5.189]
[1743184236814,5.31349,1882.0,1881.9,14.5]
[1743184237813,5.31325,1882.1,1881.9,14.5]
[1743184238195,10.62664,1882.1,1881.9,14.5]
[1743184238395,5.31349,1882.0,1881.9,14.5]
[1743184238817,10.62657,1882.1,1881.9,14.5]
[1743184239007,5.31349,1882.0,1881.9,14.5]
[1743184240688,5.31404,1881.9,1881.8,5.188]
[1743184241117,5.31404,1881.9,1881.8,14.5]
[1743184241416,6.09776,1881.7,1881.1,0.7986]
[1743184241622,5.31529,1881.4,1881.2,6.22917292]
[1743184241918,5.31529,1881.4,1881.3,14.5]
[1743184242105,5.31494,1881.5,1881.3,14.5]
[1743184242491,10.63003,1881.5,1881.3,14.5]
[1743184242691,10.63002,1881.5,1881.3,14.5]
[1743184243110,5.31467,1881.6,1881.3,14.5]
[1743184243300,5.31467,1881.6,1881.3,19.81544]
[1743184243486,6.06,1881.8,1881.4,0.80355007]
[1743184243693,6.06,1881.8,1881.6,5.31449]
[1743184243996,5.31355,1882.0,1881.7,5.31422]
[1743184244202,5.31355,1882.0,1881.7,14.5]
[1743184244409,5.31378,1881.9,1881.7,14.5]
[1743184246423,5.31355,1882.0,1881.7,14.5]
[1743184246622,10.62725,1882.0,1881.7,14.5]
[1743184246792,5.31378,1881.9,1881.7,14.5]
[1743184246994,5.31355,1882.0,1881.7,14.5]
[1743184247196,5.31355,1882.0,1881.7,19.81433]
[1743184247528,6.06,1882.1,1881.8,5.31388]
[1743184247715,11.37325,1882.1,1881.8,5.31388]
[1743184248129,6.11598,1882.3,1881.9,19.81375]
[1743184248317,6.06,1882.4,1882.2,5.31288]
[1743184248505,5.31191,1882.6,1882.3,0.7995]
[1743184248805,5.31191,1882.6,1882.3,1.94114]
[1743184249129,5.31191,1882.6,1882.4,14.73078535]
[1743184249500,10.62396,1882.6,1882.4,19.91878535]
[1743184249824,5.31208,1882.5,1882.4,19.91878535]
[1743184250040,5.31208,1882.5,1882.4,0.23078535]
[1743184250242,6.12118,1882.5,1882.4,0.23078535]
[1743184250442,5.31293,1882.2,1882.1,19.688]
[1743184251527,5.31266,1882.3,1882.1,14.5]
[1743184252110,5.31266,1882.3,1882.1,17.18171219]
[1743184252323,5.31266,1882.3,1882.1,14.5]
[1743184252520,0.8091,1882.5,1882.1,14.5]
[1743184252702,5.31261,1882.4,1882.1,14.5]
[1743184253111,5.3128,1882.3,1882.1,14.5]
[1743184253332,10.62564,1882.3,1882.1,14.5]
[1743184253504,5.31293,1882.2,1882.1,14.5]
[1743184253712,5.3128,1882.3,1882.1,14.5]
[1743184253923,10.62565,1882.3,1882.1,14.5]
[1743184254324,5.3128,1882.3,1882.1,14.5]
[1743184255014,10.62563,1882.3,1882.1,14.5]
[1743184255219,5.31293,1882.2,1882.1,14.5]
[1743184255423,5.31238,1882.4,1882.1,5.187]
[1743184255623,5.31238,1882.4,1882.1,5.9684]
[1743184255827,5.31238,1882.4,1882.2,14.5]
[1743184256220,10.62497,1882.4,1882.2,14.5]
[1743184256424,5.31238,1882.4,1882.2,14.5]
[1743184256826,10.62439,1882.5,1882.2,14.5]
[1743184257036,5.31211,1882.5,1882.2,14.5]
[1743184258236,10.62436,1882.5,1882.2,14.5]
[1743184258636,5.31237,1882.4,1882.2,14.5]
[1743184258807,5.31211,1882.5,1882.2,14.5]
[1743184259008,5.31211,1882.5,1882.2,19.81291]
[1743184259821,5.31237,1882.4,1882.2,14.5]
[1743184260353,10.62492,1882.4,1882.2,14.5]
[1743184260527,10.62493,1882.4,1882.2,14.5]
[1743184260913,5.31264,1882.3,1882.2,14.5]
[1743184262247,5.31237,1882.4,1882.2,14.5]
[1743184262445,10.62489,1882.4,1882.2,14.5]
[1743184262644,5.31264,1882.3,1882.2,14.5]
[1743184263235,10.62492,1882.4,1882.2,14.5]
[1743184263938,5.31237,1882.4,1882.3,0.22748206]
[1743184264116,5.31236,1882.4,1882.3,0.22748206]
[1743184264316,5.31236,1882.4,1882.1,10.50011]
[1743184264517,5.31236,1882.4,1882.2,14.72748206]
[1743184264717,10.62488,1882.4,1882.2,14.72748206]
[1743184266021,5.31236,1882.4,1882.2,14.72748206]
[1743184266424,5.31264,1882.3,1882.2,14.72748206]
[1743184267750,5.31264,1882.3,1882.2,0.22748206]
[1743184268119,5.31321,1882.1,1882.0,5.186]
[1743184268319,5.31321,1882.1,1882.0,19.686]
[1743184268926,5.31321,1882.1,1882.0,14.5]
[1743184269123,5.31361,1882.0,1881.8,6.2621577]
[1743184269370,5.31361,1882.0,1881.8,5.186]
[1743184269667,10.62726,1882.0,1881.9,14.5]
[1743184270853,5.31361,1882.0,1881.9,14.5]
[1743184272667,5.31406,1881.8,1881.6,5.186]
[1743184272846,5.31434,1881.7,1881.6,5.186]
[1743184273370,10.62829,1881.8,1881.6,19.686]
[1743184273536,5.31434,1881.7,1881.6,19.686]
[1743184273945,5.31406,1881.8,1881.6,19.686]
[1743184274145,6.10275,1882.1,1881.7,5.31417]
[1743184274345,6.06,1882.2,1881.9,5.31376]
[1743184274670,6.813,1882.5,1882.1,0.8099]
[1743184274867,5.31251,1882.4,1882.1,0.8099]
[1743184275069,5.31266,1882.3,1882.1,0.8099]
[1743184275587,5.31297,1882.2,1882.0,5.9924]
[1743184275944,10.62553,1882.3,1882.0,5.9924]
[1743184276169,5.31321,1882.1,1882.0,5.186]
[1743184276735,5.31296,1882.2,1882.0,5.186]
[1743184276736,10.626,1882.2,1882.0,5.186]
[1743184276937,5.31321,1882.1,1882.0,5.186]
[1743184277676,5.31296,1882.2,1882.0,5.186]
[1743184277968,5.31266,1882.3,1882.0,5.81082392]
[1743184278347,5.31266,1882.3,1882.1,0.7874]
[1743184279040,5.31266,1882.3,1882.2,0.2103573]
[1743184279873,10.62494,1882.4,1882.2,0.2103573]
[1743184280042,5.3124,1882.4,1882.2,0.2103573]
[1743184280239,11.37213,1882.5,1882.2,0.2103573]
[1743184280440,11.37213,1882.5,1882.2,5.5231473]
[1743184280745,5.31181,1882.6,1882.3,6.09266]
[1743184281162,10.62381,1882.6,1882.4,0.20826392]
[1743184281487,6.13508,1882.5,1882.4,0.20826392]
[1743184281699,6.13508,1882.5,1882.0,11.27956]
[1743184281700,5.31271,1882.3,1882.0,11.27956]
[1743184281843,5.31271,1882.3,1882.0,5.9661]
[1743184281844,5.31305,1882.2,1882.0,5.9661]
[1743184282865,10.62617,1882.2,1882.0,5.9661]
[1743184283080,5.31305,1882.2,1882.0,5.9661]
[1743184283381,5.31305,1882.2,1882.0,5.186]
[1743184283678,5.31321,1882.1,1882.0,5.186]
[1743184284881,0.8279,1882.7,1882.1,0.7768]
[1743184285184,5.31161,1882.7,1882.4,6.08916]
[1743184285483,5.31161,1882.7,1882.5,5.185]
[1743184286586,5.31201,1882.6,1882.4,5.185]
[1743184287566,10.62398,1882.6,1882.4,5.185]
[1743184287766,5.31197,1882.6,1882.4,5.185]
[1743184288160,10.62398,1882.6,1882.4,5.185]
[1743184288356,5.31196,1882.6,1882.4,5.185]
[1743184288984,5.31208,1882.5,1882.4,5.185]
[1743184289586,5.31264,1882.3,1882.2,5.185]
[1743184289751,5.31247,1882.4,1882.2,5.185]
[1743184290179,10.62501,1882.4,1882.2,5.185]
[1743184290982,5.31264,1882.3,1882.2,5.185]
[1743184292559,5.31247,1882.4,1882.2,5.185]
[1743184292760,5.31238,1882.4,1882.2,5.185]
[1743184292990,5.31212,1882.5,1882.2,5.185]
[1743184293159,10.62501,1882.4,1882.2,5.185]
[1743184293480,5.31247,1882.4,1882.2,5.185]
[1743184293798,5.31264,1882.3,1882.2,5.185]
[1743184294254,5.31247,1882.4,1882.2,5.185]
[1743184294458,10.625,1882.4,1882.2,5.185]
[1743184294685,5.31264,1882.3,1882.2,5.185]
[1743184295079,5.31247,1882.4,1882.2,5.185]
[1743184296285,10.62502,1882.4,1882.2,5.185]
[1743184296656,5.31264,1882.3,1882.2,5.185]
[1743184300980,6.12719,1882.6,1882.2,10.49782]
[1743184301188,5.31199,1882.6,1882.3,0.81]
[1743184301391,0.8234,1882.8,1882.3,6.12254]
[1743184301595,5.31126,1882.8,1882.4,5.31227]
[1743184301783,5.31132,1882.8,1882.5,5.31199]
[1743184302267,5.31132,1882.8,1882.4,5.31226]
[1743184302472,11.37097,1882.9,1882.6,0.81]
[1743184302672,16.68211,1882.9,1882.6,0.81]
[1743184302889,11.37097,1882.9,1882.6,6.12178]
[1743184303173,6.06,1882.9,1882.6,16.61631]
[1743184303365,6.06,1882.9,1882.6,11.30463]
[1743184303669,5.31071,1883.0,1882.6,13.07308582]
[1743184303870,5.31071,1883.0,1882.7,5.31143]
[1743184304372,5.31018,1883.2,1882.9,0.81]
[1743184304986,10.62046,1883.2,1882.9,0.81]
[1743184305184,5.31018,1883.2,1882.9,0.81]
[1743184305471,10.62048,1883.2,1882.9,0.81]
[1743184305673,5.31018,1883.2,1882.9,0.81]
[1743184305903,5.31042,1883.1,1882.9,0.81]
[1743184306299,10.62104,1883.1,1882.7,6.12149]
[1743184306597,5.31042,1883.1,1882.8,5.3112]
[1743184307625,10.62049,1883.2,1882.8,6.38405914]
[1743184307819,5.31039,1883.1,1882.8,6.38405914]
[1743184309118,5.31039,1883.1,1882.9,0.20483986]
[1743184309327,5.31039,1883.1,1882.8,6.38422914]
[1743184309524,5.31039,1883.1,1882.9,0.20483986]
[1743184309719,5.3102,1883.2,1882.9,5.3109]
[1743184309924,5.3102,1883.2,1882.8,7.82253622]
[1743184310324,5.31039,1883.1,1882.8,7.82253622]
[1743184310538,5.3102,1883.2,1882.9,0.20483986]
[1743184310824,11.36958,1883.4,1883.0,11.29662]
[1743184311129,11.36958,1883.4,1883.0,11.50145986]
[1743184311130,16.67934,1883.4,1883.0,11.50145986]
[1743184311492,5.30983,1883.3,1883.0,11.50145986]
[1743184311996,5.31011,1883.2,1883.0,6.19093986]
[1743184312304,10.6204,1883.2,1883.0,6.19093986]
[1743184312507,5.31011,1883.2,1883.0,6.19093986]
[1743184314035,5.31011,1883.2,1883.0,5.38683986]
[1743184314911,10.61985,1883.3,1883.0,5.38683986]
[1743184316138,5.30986,1883.3,1883.0,10.69740986]
[1743184316341,5.30986,1883.3,1883.0,12.29824085]
[1743184316840,5.30986,1883.3,1883.1,0.7689]
[1743184317206,5.30986,1883.3,1883.2,0.19520701]
[1743184318237,12.12926,1883.3,1883.2,0.19520701]
[1743184318532,12.12926,1883.3,1882.6,5.181]
[1743184318533,5.31133,1882.8,1882.6,5.181]
[1743184318732,10.62273,1882.8,1882.6,5.181]
[1743184318907,10.62273,1882.8,1882.7,0.17775694]
[1743184319303,10.62273,1882.8,1882.7,14.67775694]
[1743184321430,10.62273,1882.8,1882.7,0.17775694]
[1743184321743,5.31098,1882.9,1882.5,5.181]
[1743184321934,5.31011,1883.2,1882.8,5.31117]
[1743184322139,5.31048,1883.1,1882.9,5.18]
[1743184322535,5.31011,1883.2,1882.9,5.18]
[1743184322736,10.62038,1883.2,1883.0,14.68086163]
[1743184322938,11.36986,1883.3,1883.0,14.68086163]
[1743184323248,5.30986,1883.3,1883.1,0.8309]
[1743184323613,5.31011,1883.2,1883.1,0.8309]
[1743184323811,5.31011,1883.2,1882.9,1.86450534]
[1743184324011,5.31057,1883.1,1883.0,5.181]
[1743184325847,5.31067,1883.0,1882.5,0.8309]
[1743184326023,5.31166,1882.7,1882.5,0.8309]
[1743184326221,10.62338,1882.7,1882.5,6.0109]
[1743184326631,5.31166,1882.7,1882.5,6.0109]
[1743184326831,5.3118,1882.6,1882.5,6.0109]
[1743184327032,5.31208,1882.5,1882.4,3.0]
[1743184327348,5.31208,1882.5,1882.4,5.18]
[1743184327746,5.3118,1882.6,1882.4,8.18]
[1743184327914,10.62382,1882.6,1882.4,8.18]
[1743184328118,5.31208,1882.5,1882.4,5.18]
[1743184328353,5.3118,1882.6,1882.4,5.18]
[1743184329545,5.31208,1882.5,1882.4,5.18]
[1743184329940,5.3118,1882.6,1882.4,5.18]
[1743184330111,10.62381,1882.6,1882.4,5.18]
[1743184330655,5.31208,1882.5,1882.2,1.06749739]
[1743184330815,5.31255,1882.4,1882.2,5.18]
[1743184331652,5.31273,1882.3,1882.1,7.03851421]
[1743184331851,10.62558,1882.3,1882.1,6.23071421]
[1743184332051,5.31273,1882.3,1882.1,6.23071421]
[1743184332624,5.31239,1882.4,1882.1,6.23071421]
[1743184332849,5.31165,1882.7,1882.1,8.38293563]
[1743184333037,10.62219,1882.9,1882.5,6.07798]
[1743184333348,10.62218,1882.9,1882.5,11.25785]
[1743184333536,5.31099,1882.9,1882.5,11.25785]
[1743184333750,5.31124,1882.8,1882.5,12.91487]
[1743184334048,10.62218,1882.9,1882.5,12.91487]
[1743184334258,5.31099,1882.9,1882.5,12.91484]
[1743184334429,5.31077,1883.0,1882.6,5.31162]
[1743184334629,5.31077,1883.0,1882.8,0.7891]
[1743184334825,5.31039,1883.1,1882.8,0.7891]
[1743184335047,5.31008,1883.3,1882.9,10.49094]
[1743184335255,10.62041,1883.2,1883.0,14.5]
[1743184335454,5.31012,1883.2,1883.0,14.5]
[1743184335953,5.31012,1883.2,1882.9,10.4909]
[1743184336454,5.31012,1883.2,1882.9,24.9909]
[1743184336657,5.31012,1883.2,1882.9,28.20624514]
[1743184337478,5.31012,1883.2,1882.9,22.89534514]
[1743184337780,10.61988,1883.3,1882.9,28.20613514]
[1743184337980,5.31015,1883.2,1882.9,28.20613514]
[1743184338588,5.30985,1883.3,1882.9,28.20613514]
[1743184338948,5.30985,1883.3,1883.0,2.82061351]
[1743184339155,5.30985,1883.3,1883.0,8.3092105]
[1743184339788,10.61933,1883.4,1883.0,13.6197605]
[1743184340064,0.111107,1883.6,1883.2,5.31011]
[1743184340247,5.420107,1883.6,1883.3,10.48872]
[1743184340560,0.111107,1883.6,1883.3,17.55557321]
[1743184340771,0.111107,1883.6,1883.3,12.24585321]
[1743184340949,5.420227,1883.6,1883.4,14.5]
[1743184341156,10.729417,1883.6,1883.4,14.5]
[1743184341656,10.729417,1883.6,1883.5,0.17725021]
[1743184341836,0.111107,1883.6,1883.5,0.17725021]
[1743184343440,5.420087,1883.6,1883.5,0.17725021]
[1743184343859,5.420087,1883.6,1883.3,5.179]
[1743184343860,5.30954,1883.4,1883.3,5.179]
[1743184348743,5.420247,1883.6,1883.3,5.179]
[1743184348955,5.420247,1883.6,1883.4,14.5]
[1743184349149,10.729397,1883.6,1883.4,14.5]
[1743184349447,5.420247,1883.6,1883.4,14.5]
[1743184349848,0.111107,1883.6,1883.4,19.80952]
[1743184350758,0.111107,1883.6,1883.4,25.11897]
[1743184350942,0.111107,1883.6,1883.5,3.316897]
[1743184352171,0.111107,1883.6,1883.5,0.805]
[1743184352372,0.111107,1883.6,1883.5,15.305]
[1743184353340,0.111107,1883.6,1883.5,20.61426]
[1743184354163,0.111107,1883.6,1883.5,20.77515594]
[1743184354648,0.111107,1883.6,1883.5,15.46589594]
[1743184354841,0.111107,1883.6,1883.5,22.85268853]
[1743184355042,0.111107,1883.6,1883.5,17.54342853]
[1743184355245,0.111107,1883.6,1883.5,0.16089594]
[1743184355246,5.420087,1883.6,1883.5,0.16089594]
[1743184358178,5.30982,1883.3,1883.2,14.5]
[1743184361313,6.09972,1883.3,1883.2,14.5]
[1743184361519,5.31095,1882.9,1882.8,5.176]
[1743184361889,5.31071,1883.0,1882.8,19.676]
[1743184362102,10.62103,1883.1,1882.9,1.9676]
[1743184362299,5.31015,1883.2,1882.9,1.9676]
[1743184362603,5.31015,1883.2,1882.9,7.27853]
[1743184362806,10.62043,1883.2,1883.0,15.3331]
[1743184363109,5.31039,1883.1,1883.0,15.3331]
[1743184363902,5.31039,1883.1,1883.0,14.5]
[1743184364398,10.62042,1883.2,1883.0,14.5]
[1743184364726,5.31039,1883.1,1883.0,14.5]
[1743184366352,5.31015,1883.2,1883.0,16.4676]
[1743184367947,5.31039,1883.1,1883.0,16.4676]
[1743184368858,5.31015,1883.2,1883.0,16.4676]
[1743184369044,5.31015,1883.2,1883.0,16.61736825]
[1743184369716,10.61978,1883.3,1883.0,16.61736825]
[1743184370157,10.61986,1883.3,1883.0,16.61736825]
[1743184370454,5.31017,1883.2,1883.0,16.61736825]
[1743184370660,6.09916,1883.5,1883.1,7.74613682]
[1743184370898,0.111107,1883.6,1883.4,5.30943]
[1743184371044,0.111107,1883.6,1883.5,5.30926]
[1743184371219,0.111107,1883.6,1883.5,7.719629]
[1743184371519,0.111107,1883.6,1883.5,2.56077064]
[1743184372044,0.111107,1883.6,1883.5,7.87003064]
[1743184374123,6.181987,1883.6,1883.5,0.15040164]
[1743184374333,6.181987,1883.6,1883.5,5.32640164]
[1743184376546,6.181987,1883.6,1883.5,0.15040164]
[1743184377314,5.30954,1883.4,1883.3,5.175]
[1743184380154,10.61928,1883.4,1883.1,1.90197913]
[1743184380362,10.61928,1883.4,1883.2,5.175]
[1743184380655,5.30954,1883.4,1883.2,5.175]
[1743184381219,10.6193,1883.4,1883.2,5.175]
[1743184381819,5.30954,1883.4,1883.2,5.175]
[1743184382348,10.61926,1883.4,1883.2,5.175]
[1743184382569,5.31019,1883.2,1882.9,0.7684]
[1743184382768,5.31006,1883.3,1883.0,5.175]
[1743184383072,10.62005,1883.3,1883.0,5.175]
[1743184383223,5.30985,1883.3,1883.0,5.175]
[1743184383417,10.6199,1883.3,1883.0,5.175]
[1743184383848,5.3094,1883.5,1883.1,0.05310152]
[1743184384023,5.3094,1883.5,1883.2,0.91537934]
[1743184384348,10.61884,1883.5,1883.2,0.91537934]
[1743184384531,10.61893,1883.5,1883.2,6.22537934]
[1743184384731,5.30957,1883.4,1883.2,0.91537934]
[1743184384930,5.30957,1883.4,1883.2,1.53793627]
[1743184385656,5.30957,1883.4,1883.2,2.59663642]
[1743184385992,5.420107,1883.6,1883.3,5.30969]
[1743184386272,5.420177,1883.6,1883.4,5.321916]
[1743184386636,0.111107,1883.6,1883.4,10.631446]
[1743184386833,0.111107,1883.6,1883.5,1.0631446]
[1743184387159,0.111107,1883.6,1883.5,0.14621931]
[1743184387733,0.111107,1883.6,1883.5,6.22407931]
[1743184389451,0.111107,1883.6,1883.5,9.82716527]
[1743184390371,0.111107,1883.6,1883.5,10.81737151]
[1743184394566,0.111107,1883.6,1883.5,15.99037151]
[1743184394871,0.111107,1883.6,1883.5,18.12034966]
[1743184404491,0.111107,1883.6,1883.5,18.38726778]
[1743184404985,0.111107,1883.6,1883.5,18.12034966]
[1743184405567,0.111107,1883.6,1883.5,18.3870541]
[1743184405770,0.111107,1883.6,1883.5,18.12034966]
[1743184407973,0.8197,1884.4,1884.3,5.30701]
[1743184408295,5.30513,1885.0,1884.6,5.30607]
[1743184408598,0.8051,1885.1,1884.8,5.3055]
[1743184408801,0.8051,1885.1,1884.9,5.3053]
[1743184408960,0.8051,1885.1,1884.9,0.13533073]
[1743184409595,0.8051,1885.1,1884.9,5.44048073]
[1743184409916,0.916207,1885.4,1885.1,5.30463]
[1743184410193,0.916207,1885.4,1885.2,5.17]
[1743184410411,0.916207,1885.4,1885.2,5.29856226]
[1743184410412,6.220257,1885.4,1885.2,5.29856226]
[1743184410613,5.30419,1885.3,1885.2,0.12856226]
[1743184412277,6.12149,1885.3,1885.2,0.12856226]
[1743184413394,0.8173,1885.3,1885.2,0.12856226]
[1743184414383,0.111107,1885.4,1885.2,0.12856226]
[1743184414599,0.111107,1885.4,1885.2,1.18889049]
[1743184414906,0.111107,1885.4,1885.3,5.35722623]
[1743184415088,0.111107,1885.4,1885.3,0.17995477]
[1743184415277,0.111107,1885.4,1885.3,5.48414477]
[1743184415473,0.111107,1885.4,1885.3,9.85134477]
[1743184415679,0.111107,1885.4,1885.3,11.47293307]
[1743184415911,0.111107,1885.4,1885.3,11.41989684]
[1743184416882,0.111107,1885.4,1885.3,15.77169684]
[1743184417107,0.111107,1885.4,1885.3,13.60010854]
[1743184417721,0.111107,1885.4,1885.3,14.66095876]
[1743184417927,0.111107,1885.4,1885.3,9.89743639]
[1743184418129,0.111107,1885.4,1885.3,15.11947041]
[1743184418286,0.111107,1885.4,1885.3,15.06643639]
[1743184418626,0.111107,1885.4,1885.3,18.57233385]
[1743184419715,0.111107,1885.4,1885.3,18.83497613]
[1743184419980,0.111107,1885.4,1885.3,18.57233385]
[1743184420181,7e-06,1885.4,1885.3,18.57233385]
[1743184420404,1e-05,1885.9,1885.8,9.64318]
[1743184420710,1e-05,1885.9,1885.8,16.42247181]
[1743184421589,5.3004,1886.7,1886.3,5.30121]
[1743184421812,11.36003,1886.8,1886.4,5.168]
[1743184422127,6.07439,1886.5,1886.4,5.27596332]
[1743184422427,6.07439,1886.5,1886.4,0.10796332]
[1743184422788,0.7734,1886.5,1886.3,5.167]
[1743184422987,6.07435,1886.5,1886.3,5.167]
[1743184423417,6.07429,1886.5,1886.3,5.167]
[1743184423793,0.808,1887.0,1886.3,5.6837]
[1743184424003,5.29905,1887.2,1886.7,5.30004]
[1743184424201,12.277747,1887.3,1886.9,5.29956]
[1743184424395,6.979107,1887.3,1886.9,5.70448479]
[1743184424595,6.979107,1887.3,1886.8,5.167]
[1743184424596,0.7767,1887.1,1886.2,0.7922]
[1743184424819,6.07705,1886.7,1886.4,8.167]
[1743184425191,6.07705,1886.7,1886.4,10.46809]
[1743184425396,11.37747,1886.7,1886.4,5.167]
[1743184425592,6.07701,1886.7,1886.4,5.167]
[1743184425793,5.29973,1886.9,1886.5,5.85071]
[1743184426103,0.7767,1887.0,1886.8,5.29987]
[1743184426302,0.7767,1887.0,1886.9,5.166]
[1743184426595,6.07611,1887.0,1886.9,5.166]
[1743184426923,5.29899,1887.2,1886.9,10.46568]
[1743184427099,6.195877,1887.3,1886.9,10.46568]
[1743184427295,0.897307,1887.3,1887.0,5.2992]
[1743184427496,0.897307,1887.3,1887.0,5.35218818]
[1743184427794,0.897307,1887.3,1887.0,5.35234818]
[1743184428314,0.111107,1887.3,1887.0,5.35234818]
[1743184428486,0.111107,1887.3,1887.0,10.59865]
[1743184428819,0.111107,1887.3,1887.0,7.1219797]
[1743184428990,0.111107,1887.3,1887.1,5.29912]
[1743184429334,0.111107,1887.3,1887.2,5.35183342]
[1743184429704,0.111107,1887.3,1887.2,5.29885]
[1743184430441,0.111107,1887.3,1886.8,1.6040697]
[1743184430442,5.29981,1886.9,1886.5,6.44276805]
[1743184430601,5.29981,1886.9,1886.6,8.165]
[1743184430801,11.40448,1886.9,1886.6,1.44655539]
[1743184430986,6.10452,1886.9,1886.7,5.165]
[1743184431323,11.40444,1886.9,1886.8,5.164]
[1743184431621,6.10452,1886.9,1886.8,5.164]
[1743184432129,5.3001,1886.8,1886.7,5.164]
[1743184434232,0.8048,1886.9,1886.7,5.164]
[1743184434440,6.10469,1886.9,1886.7,5.164]
[1743184434642,11.40458,1886.9,1886.7,5.164]
[1743184434794,6.10469,1886.9,1886.8,14.5]
[1743184435318,0.8048,1886.9,1886.8,14.5]
[1743184435519,0.111107,1887.3,1886.9,5.29966]
[1743184435520,5.29895,1887.2,1886.9,5.29966]
[1743184435827,0.111107,1887.3,1887.1,5.29913]
[1743184436023,0.111107,1887.3,1887.1,4.493049]
[1743184436197,0.111107,1887.3,1887.2,19.672]
[1743184436518,0.111107,1887.3,1887.2,19.674]
[1743184436519,6.235077,1887.3,1887.2,19.674]
[1743184437709,6.235077,1887.3,1887.2,14.5]
[1743184437922,5.29931,1887.1,1887.0,5.17]
[1743184438419,5.29931,1887.1,1887.0,19.67]
[1743184438624,5.29931,1887.1,1887.0,19.669]
[1743184439003,5.29931,1887.1,1887.0,14.5]
[1743184439523,5.29931,1887.1,1886.5,4.23260633]
[1743184439524,5.29913,1887.1,1886.9,5.168]
[1743184439690,5.29995,1886.9,1886.8,5.17]
[1743184439899,6.12535,1886.9,1886.8,19.67]
[1743184440120,6.12535,1886.9,1886.8,14.5]
[1743184440327,0.8254,1886.9,1886.8,14.5]
[1743184440507,6.12509,1886.9,1886.8,19.667]
[1743184440902,6.12509,1886.9,1886.8,14.5]
[1743184441106,0.8254,1886.9,1886.8,14.5]
[1743184441297,6.12509,1886.9,1886.8,14.5]
[1743184441508,5.29952,1887.0,1886.8,14.5]